[Event "45th FIDE Womens Olympiad 2024"]
[Site "Budapest"]
[Date "2024.09.12"]
[Round "2.6"]
[White "Terbe, Julianna"]
[Black "Wagenschuetz, Evelyn"]
[Result "1/2-1/2"]
[ECO "D06"]
[WhiteElo "2245"]
[BlackElo "2036"]
[Annotator "ChessBase"]
[PlyCount "121"]
[EventDate "2024.09.05"]
[EventType "team-tourn"]
[EventCountry "HUN"]
[SourceTitle "playchess.com"]
[Source "ChessBase"]
[SourceQuality "1"]
[WhiteTeam "Hungary"]
[BlackTeam "Ecuador"]
[WhiteTeamCountry "HUN"]
[BlackTeamCountry "ECU"]
[TimeControl "40/5400+30:1800+30"]

1. d4 {[%emt 0:00:04]} Nf6 {[%emt 0:00:19]} 2. c4 {[%emt 0:00:14]} d5 {[%emt 0:01:25]} 3. cxd5 {[%emt 0:01:00]} Nxd5 {[%emt 0:00:47]} 4. e4 {[%emt 0:03:06]} Nf6 {[%emt 0:02:06]} 5. Nc3 {[%emt 0:07:16]} e6 {[%emt 0:04:12]} 6. Nf3 {[%emt 0:03:17]} Bb4 {[%emt 0:09:22]} 7. Bd3 {[%emt 0:05:49]} h6 {[%emt 0:01:45]} 8. O-O {[%emt 0:01:21]} c5 {[%emt 0:17:26]} 9. e5 {[%emt 0:13:18]} Nd5 {[%emt 0:07:36]} 10. Ne4 {[%emt 0:02:53]} cxd4 {[%emt 0:00:11]} 11. Nxd4 {[%emt 0:02:17]} Nd7 {[%emt 0:06:21]} 12. Qg4 {[%emt 0:24:40]} Nxe5 {[%emt 0:14:29]} 13. Qxg7 {[%emt 0:00:11]} Ng6 {[%emt 0:00:08]} 14. Nd6+ {[%emt 0:11:36]} Bxd6 {[%emt 0:00:48]} 15. Bxg6 {[%emt 0:00:07]} Rf8 {[%emt 0:08:09]} 16. Re1 {[%emt 0:03:56]} Qf6 {[%emt 0:14:56]} 17. Qxf6 {[%emt 0:01:29]} Nxf6 {[%emt 0:00:01]} 18. Bd3 {[%emt 0:04:49]} Bd7 {[%emt 0:02:48]} 19. g3 {[%emt 0:01:59]} Bb4 {[%emt 0:01:50]} 20. Rd1 {[%emt 0:01:57]} h5 {[%emt 0:01:10]} 21. Nb5 {[%emt 0:01:21]} Nd5 {[%emt 0:01:12]} 22. a3 {[%emt 0:02:39]} Bc5 {[%emt 0:00:17]} 23. b4 {[%emt 0:00:36]} Be7 {[%emt 0:01:47]} 24. Bb2 {[%emt 0:01:48]} a6 {[%emt 0:00:05]} 25. Nc3 {[%emt 0:00:09]} Bc6 {[%emt 0:00:15]} 26. Nxd5 {[%emt 0:00:59]} Bxd5 {[%emt 0:00:01]} 27. Be5 {[%emt 0:00:44]} Rc8 {[%emt 0:00:30]} 28. h4 {[%emt 0:00:46]} Bf3 {[%emt 0:01:20]} 29. Re1 {[%emt 0:00:58]} Rg8 {[%emt 0:00:25]} 30. Re3 {[%emt 0:00:50]} Bd5 {[%emt 0:00:46]} 31. Kh2 {[%emt 0:00:51]} f6 {[%emt 0:01:28]} 32. Bb2 {[%emt 0:00:07]} Kf7 {[%emt 0:00:22]} 33. Rc1 {[%emt 0:01:21]} Rc6 {[%emt 0:01:05]} 34. Rxc6 {[%emt 0:00:10]} Bxc6 {[%emt 0:00:06]} 35. Be2 {[%emt 0:00:22]} Rh8 {[%emt 0:00:15]} 36. f4 {[%emt 0:01:40]} Bd5 {[%emt 0:00:15]} 37. Rc3 {[%emt 0:00:29]} Bd6 {[%emt 0:00:17]} 38. Rc2 {[%emt 0:00:38]} Ke7 {[%emt 0:00:11]} 39. Rd2 {[%emt 0:00:47]} Rh7 {[%emt 0:01:05]} 40. Bd4 {[%emt 0:01:06]} Rh8 {[%emt 0:00:39]} 41. Kg1 {[%emt 0:04:22]} Rh7 {[%emt 0:10:52]} 42. Kf2 {[%emt 0:00:26]} Rh8 {[%emt 0:00:21]} 43. Bb6 {[%emt 0:09:15]} Rh7 {[%emt 0:10:14]} 44. Rc2 {[%emt 0:03:20]} Kd7 {[%emt 0:01:29]} 45. Bc5 {[%emt 0:04:06]} Rh8 {[%emt 0:04:25]} 46. Bd4 {[%emt 0:04:41]} Ke7 {[%emt 0:01:14]} 47. Rd2 {[%emt 0:01:01]} Rh7 {[%emt 0:01:55]} 48. Rd3 {[%emt 0:01:36]} Rh8 {[%emt 0:01:11]} 49. Re3 {[%emt 0:00:04]} Rh7 {[%emt 0:00:43]} 50. Ke1 {[%emt 0:01:09]} Rh8 {[%emt 0:00:50]} 51. Kd2 {[%emt 0:00:04]} Kf7 {[%emt 0:00:24]} 52. Bb6 {[%emt 0:00:53]} Kg6 {[%emt 0:01:43]} 53. Bd3+ {[%emt 0:00:09]} Kf7 {[%emt 0:00:01]} 54. Bc2 {[%emt 0:01:30]} Rc8 {[%emt 0:00:23]} 55. Ba4 {[%emt 0:01:17]} Rg8 {[%emt 0:01:57]} 56. Ke1 {[%emt 0:01:55]} Rc8 {[%emt 0:01:31]} 57. Bd1 {[%emt 0:01:18]} Kg6 {[%emt 0:00:08]} 58. Kd2 {[%emt 0:00:13]} Rc6 {[%emt 0:00:22]} 59. Bd4 {[%emt 0:00:39]} Rc4 {[%emt 0:00:26]} 60. Bc2+ {[%emt 0:00:26]} Kf7 {[%emt 0:00:14]} 61. Bb6 {[%emt 0:00:50]} 1/2-1/2

[Event "45th FIDE Womens Olympiad 2024"]
[Site "Budapest"]
[Date "2024.09.12"]
[Round "2.7"]
[White "Vasquez Ramirez, Rocio"]
[Black "Papp, Petra"]
[Result "0-1"]
[ECO "B12"]
[WhiteElo "1981"]
[BlackElo "2259"]
[Annotator "ChessBase"]
[PlyCount "108"]
[EventDate "2024.09.05"]
[EventType "team-tourn"]
[EventCountry "HUN"]
[SourceTitle "playchess.com"]
[Source "ChessBase"]
[SourceQuality "1"]
[WhiteTeam "Ecuador"]
[BlackTeam "Hungary"]
[WhiteTeamCountry "ECU"]
[BlackTeamCountry "HUN"]
[TimeControl "40/5400+30:1800+30"]

1. e4 {[%emt 0:01:00]} c6 {[%emt 0:00:18]} 2. d4 {[%emt 0:00:12]} d5 {[%emt 0:00:16]} 3. e5 {[%emt 0:00:05]} Bf5 {[%emt 0:00:55]} 4. Nf3 {[%emt 0:05:33]} e6 {[%emt 0:01:04]} 5. h3 {[%emt 0:00:37]} c5 {[%emt 0:02:03]} 6. c3 {[%emt 0:03:36]} Nc6 {[%emt 0:00:22]} 7. Bd3 {[%emt 0:01:53]} Bxd3 {[%emt 0:04:59]} 8. Qxd3 {[%emt 0:00:06]} Rc8 {[%emt 0:03:51]} 9. O-O {[%emt 0:06:11]} cxd4 {[%emt 0:01:44]} 10. cxd4 {[%emt 0:00:10]} Nb4 {[%emt 0:00:26]} 11. Qb5+ {[%emt 0:00:05]} Qd7 {[%emt 0:00:04]} 12. Nc3 {[%emt 0:01:03]} Qxb5 {[%emt 0:03:26]} 13. Nxb5 {[%emt 0:00:06]} a6 {[%emt 0:00:46]} 14. Nc3 {[%emt 0:00:37]} Ne7 {[%emt 0:01:02]} 15. a3 {[%emt 0:01:52]} Nbc6 {[%emt 0:01:13]} 16. Na4 {[%emt 0:04:29]} b5 {[%emt 0:13:25]} 17. Nc3 {[%emt 0:04:10]} Na5 {[%emt 0:04:27]} 18. g4 {[%emt 0:05:33]} h6 {[%emt 0:01:56]} 19. Kg2 {[%emt 0:04:20]} Kd7 {[%emt 0:00:26]} 20. Ne2 {[%emt 0:02:32]} Ng6 {[%emt 0:03:53]} 21. b4 {[%emt 0:03:58]} Rc2 {[%emt 0:13:06]} 22. bxa5 {[%emt 0:09:34]} Rxe2 {[%emt 0:00:10]} 23. Be3 {[%emt 0:00:23]} Rc2 {[%emt 0:01:29]} 24. Rfc1 {[%emt 0:03:33]} Rxc1 {[%emt 0:02:16]} 25. Bxc1 {[%emt 0:00:04]} Be7 {[%emt 0:00:04]} 26. Bd2 {[%emt 0:05:45]} Rc8 {[%emt 0:00:18]} 27. a4 {[%emt 0:01:07]} bxa4 {[%emt 0:16:01]} 28. Rxa4 {[%emt 0:00:25]} Rc4 {[%emt 0:00:07]} 29. Ra2 {[%emt 0:05:44]} Bd8 {[%emt 0:01:50]} 30. Be3 {[%emt 0:08:11]} Ne7 {[%emt 0:03:37]} 31. Ne1 {[%emt 0:03:46]} Nc6 {[%emt 0:00:25]} 32. Nd3 {[%emt 0:00:01]} Be7 {[%emt 0:02:42]} 33. Rb2 {[%emt 0:01:35]} Nb4 {[%emt 0:03:20]} 34. Nc1 {[%emt 0:05:01]} Rc2 {[%emt 0:02:50]} 35. Rb1 {[%emt 0:02:31]} Kc6 {[%emt 0:01:59]} 36. Nb3 {[%emt 0:00:30]} Nd3 {[%emt 0:04:21]} 37. Na1 {[%emt 0:09:17]} Rb2 {[%emt 0:00:29]} 38. Rd1 {[%emt 0:00:14]} Nb4 {[%emt 0:01:05]} 39. Rc1+ {[%emt 0:00:19]} Kd7 {[%emt 0:00:56]} 40. Rc3 {[%emt 0:00:56]} Ra2 {[%emt 0:05:00]} 41. Nb3 {[%emt 0:30:48]} Rc2 {[%emt 0:02:30]} 42. Rxc2 {[%emt 0:00:00]} Nxc2 {[%emt 0:00:08]} 43. Kf3 {[%emt 0:00:00]} Kc6 {[%emt 0:00:46]} 44. Ke2 {[%emt 0:00:00]} Kb5 {[%emt 0:02:56]} 45. Kd3 {[%emt 0:00:00]} Nb4+ {[%emt 0:02:35]} 46. Kc3 {[%emt 0:00:00]} Nc6 {[%emt 0:00:09]} 47. f4 {[%emt 0:00:00]} Nxa5 {[%emt 0:00:38]} 48. Nxa5 {[%emt 0:00:00]} Kxa5 {[%emt 0:00:17]} 49. f5 {[%emt 0:00:00]} Bf8 {[%emt 0:06:43]} 50. h4 {[%emt 0:00:00]} g6 {[%emt 0:00:21]} 51. f6 {[%emt 0:00:00]} h5 {[%emt 0:01:24]} 52. gxh5 {[%emt 0:00:00]} gxh5 {[%emt 0:00:04]} 53. Kb3 {[%emt 0:00:42]} Kb5 {[%emt 0:00:10]} 54. Bc1 {[%emt 0:01:37]} Bb4 {[%emt 0:01:15]} 0-1

[Event "45th FIDE Womens Olympiad 2024"]
[Site "Budapest"]
[Date "2024.09.12"]
[Round "2.8"]
[White "Lazarne Vajda, Szidonia"]
[Black "Miranda Vargas, Analia Karen"]
[Result "1-0"]
[ECO "A45"]
[WhiteElo "2283"]
[BlackElo "1891"]
[Annotator "ChessBase"]
[PlyCount "85"]
[EventDate "2024.09.05"]
[EventType "team-tourn"]
[EventCountry "HUN"]
[SourceTitle "playchess.com"]
[Source "ChessBase"]
[SourceQuality "1"]
[WhiteTeam "Hungary"]
[BlackTeam "Ecuador"]
[WhiteTeamCountry "HUN"]
[BlackTeamCountry "ECU"]
[TimeControl "40/5400+30:1800+30"]

1. d4 {[%emt 0:00:06]} Nf6 {[%emt 0:00:10]} 2. Bf4 {[%emt 0:00:20]} c5 {[%emt 0:00:48]} 3. d5 {[%emt 0:03:01]} d6 {[%emt 0:02:19]} 4. c4 {[%emt 0:01:01]} b5 {[%emt 0:04:48]} 5. cxb5 {[%emt 0:01:21]} a6 {[%emt 0:03:19]} 6. bxa6 {[%emt 0:00:42]} Qb6 {[%emt 0:01:27]} 7. Bc1 {[%emt 0:02:59]} Bxa6 {[%emt 0:02:26]} 8. Nc3 {[%emt 0:00:30]} Nbd7 {[%emt 0:02:06]} 9. Nf3 {[%emt 0:04:50]} g6 {[%emt 0:02:38]} 10. e4 {[%emt 0:07:26]} Bxf1 {[%emt 0:11:43]} 11. Kxf1 {[%emt 0:00:07]} Bg7 {[%emt 0:01:59]} 12. g3 {[%emt 0:00:50]} O-O {[%emt 0:09:55]} 13. Kg2 {[%emt 0:00:15]} Qb4 {[%emt 0:12:17]} 14. Qc2 {[%emt 0:08:06]} Rfb8 {[%emt 0:03:24]} 15. Re1 {[%emt 0:02:37]} Ng4 {[%emt 0:02:18]} 16. Re2 {[%emt 0:06:26]} Qc4 {[%emt 0:05:09]} 17. Nd1 {[%emt 0:10:30]} Nge5 {[%emt 0:04:19]} 18. Nxe5 {[%emt 0:11:38]} Qxc2 {[%emt 0:01:14]} 19. Rxc2 {[%emt 0:00:05]} Nxe5 {[%emt 0:00:04]} 20. Bd2 {[%emt 0:11:09]} Nd3 {[%emt 0:05:27]} 21. a4 {[%emt 0:02:20]} Nxb2 {[%emt 0:03:17]} 22. Nxb2 {[%emt 0:01:17]} Bxb2 {[%emt 0:00:19]} 23. Rb1 {[%emt 0:01:46]} Bd4 {[%emt 0:01:59]} 24. Rxb8+ {[%emt 0:01:26]} Rxb8 {[%emt 0:00:05]} 25. a5 {[%emt 0:01:40]} Kf8 {[%emt 0:01:40]} 26. Ra2 {[%emt 0:00:49]} Ke8 {[%emt 0:02:23]} 27. a6 {[%emt 0:07:02]} Kd7 {[%emt 0:01:16]} 28. Ba5 {[%emt 0:00:42]} c4 {[%emt 0:04:31]} 29. Ra4 {[%emt 0:02:43]} Rb5 {[%emt 0:08:17]} 30. Bd2 {[%emt 0:01:36]} Ba7 {[%emt 0:02:05]} 31. Rxc4 {[%emt 0:01:37]} e6 {[%emt 0:01:38]} 32. Rb4 {[%emt 0:03:24]} Rb6 {[%emt 0:00:37]} 33. Rxb6 {[%emt 0:01:27]} Bxb6 {[%emt 0:00:01]} 34. Kf3 {[%emt 0:00:17]} Kc7 {[%emt 0:00:47]} 35. Bb4 {[%emt 0:00:27]} Bd4 {[%emt 0:00:40]} 36. Ke2 {[%emt 0:00:46]} Bb6 {[%emt 0:00:33]} 37. f3 {[%emt 0:01:42]} Bd4 {[%emt 0:00:20]} 38. Kd3 {[%emt 0:00:14]} Bg1 {[%emt 0:00:11]} 39. h3 {[%emt 0:00:06]} Bf2 {[%emt 0:00:22]} 40. g4 {[%emt 0:00:15]} Bb6 {[%emt 0:01:02]} 41. Kc4 {[%emt 0:30:17]} Be3 {[%emt 0:30:32]} 42. Kb5 {[%emt 0:00:04]} Bf4 {[%emt 0:00:30]} 43. Ba5+ {[%emt 0:00:09]} 1-0

[Event "45th FIDE Womens Olympiad 2024"]
[Site "Budapest"]
[Date "2024.09.12"]
[Round "2.9"]
[White "Zherebtsova, Alexandra"]
[Black "Dzagnidze, Nana"]
[Result "0-1"]
[ECO "E20"]
[WhiteElo "2239"]
[BlackElo "2508"]
[Annotator "TA"]
[PlyCount "113"]
[EventDate "2024.09.05"]
[EventType "team-tourn"]
[EventCountry "HUN"]
[SourceTitle "playchess.com"]
[Source "ChessBase"]
[SourceQuality "1"]
[WhiteTeam "Montenegro"]
[BlackTeam "Georgia"]
[WhiteTeamCountry "MNE"]
[BlackTeamCountry "GEO"]
[TimeControl "40/5400+30:1800+30"]

{[%evp 26,113,-45,-41,-24,-29,-15,-37,-46,-73,-76,-71,-69,-79,-81,-103,-95,-101,-93,-179,-193,-290,-205,-188,-183,-191,-191,-186,-187,-197,-187,-262,-150,-245,-161,-162,-156,-271,-265,-473,-465,-581,-579,-575,-300,-291,-287,-276,-285,-282,-281,-287,-259,-284,-281,-443,-439,-536,-391,-397,-394,-431,-388,-449,-449,-569,-452,-812,-614,-1465,-5683,-5612,-5583,-5112,-4704,-2746,-1389,-2137,-1629,-6364,-6124,-29961,-6216,-29975,-29976,-29976,-29976,-29976,-29975,-4610]} 1. d4 {[%emt 0:00:02]} Nf6 {[%emt 0:00:09]} 2. c4 {[%emt 0:00:03]} e6 {[%emt 0:00:04]} 3. Nc3 {[%emt 0:00:08]} Bb4 {[%emt 0:00:06]} 4. f3 {[%emt 0:00:03]} c5 {[%emt 0:00:41]} 5. d5 {[%emt 0:00:21]} d6 {[%emt 0:00:12]} 6. e4 {[%emt 0:00:38]} b5 {[%emt 0:00:09] E20: Nimzo-Indian: 4 g3 and 4 f3.} 7. Nge2 {[%emt 0:01:27]} bxc4 {[%emt 0:01:00]} 8. Nf4 {[%emt 0:01:47]} e5 {[%emt 0:05:42]} 9. Nfe2 {[%emt 0:00:05]} Nbd7 {[%emt 0:01:07]} 10. Ng3 {[%emt 0:11:57]} Nb6 {[%emt 0:00:15]} 11. Be2 {[%emt 0:01:53]} Ng8 {[%emt 0:00:16]} 12. f4 {[%emt 0:07:48]} exf4 {[%emt 0:00:47]} 13. Bxf4 {[%emt 0:01:04]} Ne7 {[%emt 0:00:45]} 14. O-O {[%emt 0:19:18]} Bxc3 {[%emt 0:06:57]} 15. bxc3 {[%emt 0:00:05]} O-O {[%emt 0:00:37]} 16. Bg5 $146 {[%emt 0:09:18]} ({Predecessor:} 16. a4 Ng6 17. Qd2 a5 18. h4 Ra6 19. h5 Nxf4 20. Qxf4 h6 21. Bg4 Bd7 22. Rab1 Bxg4 23. Qxg4 {0-1 Martins,D (2412)-Ter Sahakyan,S (2616) POR-chT Soure 2024 (7.6)}) 16... f6 {[%emt 0:02:55]} 17. Be3 {[%emt 0:01:11]} Ng6 {[%emt 0:05:34]} 18. Qe1 {[%emt 0:12:16]} Qe7 {[%emt 0:06:27]} 19. a4 {[%emt 0:03:04]} a5 {[%emt 0:16:21]} 20. Qb1 {[%emt 0:05:30]} Rb8 {[%emt 0:00:23]} 21. Qa2 {[%emt 0:01:10]} Bd7 {[%emt 0:07:11]} 22. Bxc4 {[%emt 0:05:22]} (22. Bd1 $17) 22... f5 $1 $19 {[%emt 0:03:40]} (22... Bxa4 23. Ba6 $17) 23. Bd2 {[%emt 0:02:43]} (23. Rae1 {is a better defense.} f4 (23... Bxa4 24. Nxf5 Qxe4 25. Nxd6 $14) (23... fxe4 24. Rxf8+ Rxf8 25. Bb3 $15) (23... Nxc4 $2 24. Qxc4 f4 25. Nf5 $19) 24. Nf5 Bxf5 (24... Qxe4 $2 25. Nxd6 Qe5 26. Bxc5 $18) 25. exf5 fxe3 (25... Rxf5 26. Bxf4 Qf6 27. Bg3 $14) 26. fxg6) 23... Nxc4 {[%emt 0:10:22]} (23... Bxa4 24. Nxf5 (24. Rxf5 Nxc4 25. Qxc4 Bb5 $11) 24... Qxe4 25. Nxd6 $11) (23... fxe4 24. Rfe1 $17) 24. Qxc4 {[%emt 0:00:06] [#]} f4 $1 {[%emt 0:00:03]} 25. Nf5 {[%emt 0:03:45]} Bxf5 {[%emt 0:02:27]} 26. exf5 {[%emt 0:00:04]} Rxf5 {[%emt 0:00:05]} 27. Rae1 {[%emt 0:00:58] [#]} Qf7 $1 {[%emt 0:01:52]} 28. Re6 {[%emt 0:01:49]} (28. Qe4 $142) 28... f3 {[%emt 0:06:23]} (28... Ne5 $19 29. Qe4 f3) 29. g4 {[%emt 0:00:55]} (29. Qe4 $17) 29... f2+ {[%emt 0:05:00]} 30. Kg2 {[%emt 0:03:53]} Rf3 {[%emt 0:04:44]} 31. Bg5 {[%emt 0:00:38]} (31. h3 $17) 31... Rf8 $19 {[%emt 0:01:51]} 32. Qe4 $2 {[%emt 0:00:47]} (32. Qe2) 32... Rxc3 $19 {[%emt 0:01:24]} 33. Rxd6 {[%emt 0:02:08]} Rc4 {[%emt 0:01:22]} 34. Qf5 {[%emt 0:00:24]} Qxf5 {[%emt 0:00:55]} (34... Rxa4 $2 35. Qxf7+ Rxf7 36. Rd8+ Rf8 37. Rxf8+ Kxf8 (37... Nxf8 38. h3 $17) 38. Rxf2+ Ke8 39. Kg3 $19) 35. gxf5 {[%emt 0:00:04]} Rg4+ {[%emt 0:02:11]} (35... Rxf5 36. Rd8+ Rf8 37. Rxf8+ Kxf8 (37... Nxf8 38. Be3 $17) 38. Rxf2+ Ke8 39. Be3 $19) 36. Kh1 {[%emt 0:02:01]} Ne5 {[%emt 0:00:35]} (36... Rxf5 37. Rd8+ Rf8 38. Rxf8+ Nxf8 39. Be3 $17) 37. Be3 {[%emt 0:01:52]} Nc4 {[%emt 0:00:27]} (37... Rxa4 38. Re6 Nd3 (38... Rxf5 $2 39. d6 $19) 39. d6 $19) 38. Re6 {[%emt 0:00:20]} Nxe3 {[%emt 0:00:13]} (38... Rxf5 39. Bxc5 h5 (39... Rxd5 40. Re8+ Kf7 41. Re7+ Kf6 42. Rxf2+ Kg6 43. h3 $15) 40. Bxf2 $17) 39. Rxe3 {[%emt 0:00:04]} Rxf5 {[%emt 0:00:04]} (39... Rxa4 40. Rxf2 Rd4 41. Re5 $19) 40. Re8+ {[%emt 0:01:46]} (40. d6 {was necessary.} Rfg5 (40... Rxa4 $2 41. d7 $18) 41. Rg3 Rxg3 42. hxg3) 40... Kf7 $19 {[%emt 0:00:05]} 41. Rc8 {[%emt 0:30:24]} Rxd5 {[%emt 0:34:18]} 42. Rxf2+ {[%emt 0:00:06]} Kg6 {[%emt 0:00:12]} 43. Rc6+ {[%emt 0:01:42]} Kh5 {[%emt 0:00:13]} 44. h3 {[%emt 0:00:29]} Rxa4 {[%emt 0:01:21]} 45. Rc2 {[%emt 0:00:00]} Ra3 {[%emt 0:00:00]} 46. Kg2 {[%emt 0:00:00]} (46. Rc7 $142 Kh6 (46... Rxh3+ 47. Kg2 $17) 47. Kg2) 46... Kh4 $19 {[%emt 0:00:00]} 47. R6xc5 {[%emt 0:00:00]} Rxc5 {[%emt 0:00:00]} 48. Rxc5 {[%emt 0:00:00]} Ra2+ {[%emt 0:00:00]} (48... Rxh3 $2 {is the wrong capture.} 49. Rc4+ (49. Rxa5 $2 {too greedy.} Rg3+ 50. Kf2 g5 $19) 49... Kh5 50. Kxh3 $18) 49. Kf3 {[%emt 0:00:00]} g5 {[%emt 0:00:00]} ({And not} 49... Kxh3 50. Rh5#) 50. Ke4 {[%emt 0:00:00]} Ra4+ {[%emt 0:00:00]} 51. Ke3 {[%emt 0:00:00]} Ra3+ {[%emt 0:00:00]} 52. Ke4 {[%emt 0:00:00]} Rxh3 {[%emt 0:00:00]} 53. Rxa5 {[%emt 0:00:00]} Kg4 {[%emt 0:00:00]} 54. Ra1 {[%emt 0:00:00]} h5 {[%emt 0:00:00]} 55. Ra2 {[%emt 0:00:00]} h4 {[%emt 0:00:00]} 56. Ra1 {[%emt 0:00:00]} Rg3 {[%emt 0:00:00]} 57. Kd4 {[%emt 0:00:09]} 0-1

[Event "45th FIDE Womens Olympiad 2024"]
[Site "Budapest"]
[Date "2024.09.12"]
[Round "2.10"]
[White "Batsiashvili, Nino"]
[Black "Skvortsova, Alena"]
[Result "1-0"]
[ECO "D10"]
[WhiteElo "2461"]
[BlackElo "2179"]
[Annotator "TA"]
[PlyCount "69"]
[EventDate "2024.09.05"]
[EventType "team-tourn"]
[EventCountry "HUN"]
[SourceTitle "playchess.com"]
[Source "ChessBase"]
[SourceQuality "1"]
[WhiteTeam "Georgia"]
[BlackTeam "Montenegro"]
[WhiteTeamCountry "GEO"]
[BlackTeamCountry "MNE"]
[TimeControl "40/5400+30:1800+30"]

{[%evp 14,69,34,25,52,30,41,29,50,60,80,61,70,70,71,71,80,84,101,-57,76,56,52,57,71,20,18,0,37,41,45,36,41,43,34,41,64,70,44,72,154,218,222,200,283,285,243,175,623,274,5389,5357,29975,29976,29975,29975,29972,29947]} 1. d4 {[%emt 0:00:03]} d5 {[%emt 0:00:09]} 2. c4 {[%emt 0:00:04]} c6 {[%emt 0:00:05]} 3. cxd5 {[%emt 0:00:03]} cxd5 {[%emt 0:00:03]} 4. Bf4 {[%emt 0:00:06]} Nc6 {[%emt 0:00:47]} 5. e3 {[%emt 0:00:05]} Nf6 {[%emt 0:00:17]} 6. Bd3 {[%emt 0:00:20]} e6 {[%emt 0:04:26]} 7. Nc3 {[%emt 0:00:20][%cal Bb1c3,Bc3a4,Ba4c5][%mdl 32]} a6 {[%emt 0:05:54]} 8. Rc1 {[%emt 0:04:49]} Qb6 {[%emt 0:04:12]} 9. Nge2 {[%emt 0:13:32]} Bd7 {[%emt 0:05:19]} 10. O-O {[%emt 0:02:01]} Rc8 {[%emt 0:04:02] White has an edge.} 11. Na4 {[%emt 0:05:28]} Qa7 {[%emt 0:02:23]} 12. a3 {[%emt 0:04:23] White is more active.} Be7 {[%emt 0:07:45]} 13. Nc5 {[%emt 0:06:16]} Nh5 {[%emt 0:12:02]} 14. Nxd7 {[%emt 0:05:33]} Kxd7 {[%emt 0:00:45]} 15. Be5 {[%emt 0:00:26]} f6 {[%emt 0:06:41]} 16. Nc3 $2 {[%emt 0:05:53] [#]} (16. Bf4 $16) 16... g6 {[%emt 0:04:39]} (16... fxe5 $15 17. Qxh5 exd4 18. exd4 (18. Nxd5 exd5 19. Bf5+ Kc7 $19) 18... Qxd4) 17. Bg3 $16 {[%emt 0:00:14]} Nxg3 {[%emt 0:00:28]} 18. hxg3 {[%emt 0:00:02]} Ke8 {[%emt 0:12:59]} 19. Na4 {[%emt 0:07:34]} (19. g4 $16) 19... Kf7 $11 {[%emt 0:01:27]} 20. Rc3 {[%emt 0:04:19]} b5 {[%emt 0:07:37]} 21. Qc2 {[%emt 0:05:44]} Qb7 {[%emt 0:00:15]} 22. Nc5 {[%emt 0:04:03]} Bxc5 {[%emt 0:00:20]} 23. Rxc5 {[%emt 0:00:44]} Na5 {[%emt 0:08:21]} 24. Rc1 {[%emt 0:04:54][%cal Rc5c8]} Nc4 {[%emt 0:03:53]} 25. e4 {[%emt 0:05:37]} Rxc5 {[%emt 0:02:16]} 26. dxc5 {[%emt 0:00:05]} dxe4 {[%emt 0:04:20]} (26... Ne5 $142) 27. Bxc4 $16 {[%emt 0:06:32]} bxc4 {[%emt 0:00:06]} 28. Qxc4 {[%emt 0:00:03]} Qxb2 $14 {[%emt 0:02:01][%mdl 4096] Endgame. KQR-KQR} (28... Qb5 {might work better.} 29. Qxe4 Qxb2) 29. Rd1 $18 {[%emt 0:02:40]} Re8 {[%emt 0:00:34]} (29... Qb5 $2 30. Qxb5 (30. Qxe4 Re8 $16) 30... axb5 31. Rd7+ Ke8 32. Rb7 $18) 30. c6 {[%emt 0:00:35][%cal Bc5c6,Bc6c7][%mdl 32]} (30. Qxa6 e3 31. fxe3 Qc3 $11) (30. Qxe4 $6 Qc3) 30... e3 $2 {[%emt 0:00:31] [#]} (30... Qb8 31. c7 (31. Qxa6 Re7 $16) 31... Qc8) 31. fxe3 {[%emt 0:00:17]} (31. c7 $142 {Rd7+ would kill now.} exf2+ 32. Kf1) 31... Qe5 $2 {[%emt 0:00:36]} (31... Qb8 32. c7 (32. Qxa6 Qxg3 33. Qa7+ Re7 $16) 32... Qc8) 32. Rd7+ {[%emt 0:00:52]} (32. Qxa6 Qxe3+ 33. Kh2 Re7 $16 (33... Qh6+ 34. Kg1 $11)) 32... Kg8 {[%emt 0:00:36]} 33. c7 {[%emt 0:02:56] White mates.} ({Stronger than} 33. Qxa6 Qxe3+ 34. Kh2 Qh6+ 35. Kg1 Qc1+ 36. Kh2 (36. Kf2 Rb8 $11) 36... Qh6+ 37. Kg1 Qc1+ 38. Kh2 (38. Kf2 Qc2+ 39. Kg1 Qc1+ $11) 38... Qh6+ $11) 33... Qxe3+ {[%emt 0:00:22]} 34. Kh2 {[%emt 0:00:08]} Qh6+ {[%emt 0:00:40]} 35. Qh4 {[%emt 0:00:20] Weighted Error Value: White=0.40/Black=0.56.  Mistake:       	White=3     	Black=5      Inaccurate:     	---       	Black=2      OK:         	White=7     	Black=7      Best:        	White=3     	Black=1} 1-0